Cogmind - Beta 13 @@@ ROGUE MODE // 2024.04.07 @ 19:24:25 Player: Patryk Z Result: Destroyed by L5-IYT(R) with Subdweller Machine Gun Performance ------------- Evolutions (0) 0 Regions Visited (2) 400 Robots Destroyed (24) 120 Value Destroyed (496) 496 Prototype IDs (2) 40 Alien Tech Used (0) 0 Bonus (0) 0 TOTAL SCORE: 1056 Bonus ------- None Cogmind --------- Core Integrity 0/250 Matter 298/300 Energy 125/125 System Corruption 1% Temperature Warm (155) Movement Walking (400) Ox4 Location -10/Subcaves Parts ------- > --- POWER (1) -------- Light Ion Engine > --- PROPULSION (2) --- Aluminum Leg > --- UTILITY (2) ------ High-capacity Storage Unit Subdweller Optics > --- WEAPON (2) ------- (None) > --- INVENTORY (20) --- Sensor Array Signal Interpreter Scrap Shield Recalibrator Peak State ------------ > --- POWER ------------ Light Ion Engine > --- PROPULSION ------- Aluminum Leg Aluminum Leg > --- UTILITY ---------- High-capacity Storage Unit Recalibrator > --- WEAPON ----------- Small Laser Light Cannon > --- INVENTORY -------- Light Ion Engine Aluminum Leg Heat Sink Improved Heat Sink High-capacity Matter Pod Structural Scanner Sensor Array Signal Interpreter [Rating: 11] Favorites ----------- Power Ion Engine Engine Ion Engine Propulsion Aluminum Leg Leg Aluminum Leg Utility Seismic Detector Device Seismic Detector Storage High-capacity Storage Unit Weapon Mining Laser Energy Gun Small Laser Ballistic Gun Assault Rifle Ballistic Cannon Light Cannon Special Weapon Mining Laser Build | -11 -10 -10 ------- Run | Yrd Mat Sub Slots Evolved . | . . . Power . | . . . Propulsion . | . . . Utility . | . . . Weapon . | . . . Parts Attached 38 | 15 19 4 Power 3 | 2 1 . Engine 3 | 2 1 . Core . | . . . Reactor . | . . . Propulsion 6 | 2 3 1 Treads . | . . . Leg 6 | 2 3 1 Wheel . | . . . Hover . | . . . Flight . | . . . Utility 12 | 2 8 2 Device 11 | 2 7 2 Storage 1 | . 1 . Processor . | . . . Hackware . | . . . Protection . | . . . Artifact . | . . . Weapon 17 | 9 7 1 Energy Gun 7 | 4 2 1 Energy Cannon . | . . . Ballistic Gun 4 | 2 2 . Ballistic Cannon 2 | . 2 . Launcher . | . . . Special Weapon 4 | 3 1 . Impact Weapon . | . . . Slashing Weapon . | . . . Piercing Weapon . | . . . Special Melee Weapon . | . . . Unidentified Prototypes . | . . . Parts Lost 10 | . 6 4 Power 1 | . 1 . Propulsion 4 | . 2 2 Utility 1 | . 1 . Weapon 4 | . 2 2 Highest Loss Streak 6 | . 6 4 To Critical Strikes 1 | . . 1 Average Slot Usage (%) 98 | . 97 99 Engine 13 | . 13 14 Leg 27 | . 27 28 Device 14 | . 14 14 Storage 13 | . 13 14 Energy Gun 8 | . 7 13 Ballistic Gun 9 | . 10 . Ballistic Cannon 9 | . 8 14 Naked Turns . | . . . Heaviest Build 52 | 11 50 52 Greatest Support 20 | 20 20 20 Greatest Overweight (x) 4 | . 4 2 Average Overweight (x) . | . 1 2 Largest Inventory Capacity 20 | 5 20 20 Average Capacity 8 | 5 19 20 Most Carried 12 | 5 8 12 Average Carried 4 | 3 5 10 Final Capacity 20 | 5 20 20 Final Carried 8 | 2 8 5 Class Distribution -------------------- 84% | Mutant 15% | Scavenger-Mutant Dominant Class ---------------- Scavenger-Mutant | -10/Materials Scavenger-Mutant | -10/Subcaves Resources | -11 -10 -10 ----------- Run | Yrd Mat Sub Matter Collected 1049 | 358 625 66 Remotely . | . . . Salvage Created 789 | 95 694 . Parts 48 | 10 38 . Haulers Intercepted . | . . . Recyclers Shooed . | . . . Parts Field Recycled . | . . . Retrieved Matter . | . . . Parts Self-Destructed . | . . . Prevented . | . . . Kills | -11 -10 -10 ------- Run | Yrd Mat Sub Combat Hostiles Destroyed 13 | 1 12 . Guns 9 | 1 8 . Cannons 4 | . 4 . Classes Destroyed 8 | 2 6 . Worker 1 | . 1 . Builder 1 | . 1 . Tunneler 3 | 3 . . Recycler 2 | . 2 . Mechanic 1 | . 1 . Watcher 3 | . 3 . Swarmer 3 | . 3 . Grunt 10 | 1 9 . Best Kill Streak 7 | 1 7 . Combat Bots Only 4 | 1 4 . Max Kills in Single Turn 1 | 1 1 . Gunslinging . | . . . Exploded . | . . . Melee . | . . . Uniques/NPCs Destroyed . | . . . Combat | -11 -10 -10 -------- Run | Yrd Mat Sub Hostile Shots Fired 137 | 10 102 25 Missed 45 | 4 35 6 Damage Taken 1266 | 66 740 460 Core 266 | . 148 118 Absorbed by Shields . | . . . Core Remaining (%) 100 | 100 . . Volleys Fired 355 | 296 56 3 Largest 2 | 2 2 2 Hottest 200 | 200 75 95 Shots Fired 594 | 500 89 5 Gun 82 | 23 57 2 Cannon 35 | . 32 3 Launcher . | . . . Special 477 | 477 . . Kinetic 93 | 15 75 3 Thermal 501 | 485 14 2 Explosive . | . . . Electromagnetic . | . . . Robot Hit Streak 10 | 7 10 2 Robot Miss Streak 2 | 2 2 2 Penetration Max . | . . . Secondary Targets . | . . . Shots Hit Robots 80 | 16 62 2 Core Hits 38 | 7 30 1 Critical Kills . | . . . Critical Parts Destroyed 1 | . 1 . Critical Strikes 3 | . 2 1 Destroy 2 | . 1 1 Blast 1 | . 1 . Melee Attacks . | . . . Impact . | . . . Slashing . | . . . Piercing . | . . . Sneak Attacks . | . . . Combat Hostiles . | . . . Follow-up Attacks . | . . . Damage Inflicted 1121 | 165 882 74 Guns 719 | 165 513 41 Cannons 400 | . 367 33 Explosions . | . . . Melee . | . . . Ramming 2 | . 2 . Kinetic 884 | 89 762 33 Thermal 235 | 76 118 41 Explosive . | . . . Electromagnetic . | . . . Impact . | . . . Slashing . | . . . Piercing . | . . . Highest Corruption 1 | . 1 1 Average Corruption 1 | . 1 1 Corruption Purged . | . . . Corruption Blocked . | . . . Effects 11 | . 8 3 Message Errors 3 | . 1 2 Matter Fused 6 | . 5 1 Heat Flow Errors 1 | . 1 . Misfires 1 | . 1 . Overload Shots . | . . . Overflow Damage . | . . . Projectiles . | . . . Explosions . | . . . Melee . | . . . Knockbacks 2 | . 2 . Impact . | . . . Kinetic 2 | . 2 . Secondary . | . . . Self-Inflicted Damage . | . . . Shots . | . . . Rammed . | . . . Targets Rammed 2 | . 2 . Kicked 2 | . 2 . Crushed . | . . . Highest Temperature 285 | 20 185 285 Average Temperature 53 | 9 33 247 Received Heat Transfer 816 | 36 399 381 Siege Activations . | . . . Robots Corrupted . | . . . Combat Hostiles . | . . . Parts Fried . | . . . Impact Corruptions . | . . . Robots Melted . | . . . Combat Hostiles . | . . . Parts Melted . | . . . Heat Transferred 547 | 222 275 50 Parts Sabotaged . | . . . Parts Stolen . | . . . Parts Stripped . | . . . Power Chain Reactions . | . . . Alert | -11 -10 -10 ------- Run | Yrd Mat Sub Peak Influence 129 | 30 129 . Initial . | . . . Average 10 | 1 43 . Maximum Alert Level . | . . . Low Security (%) 100 | 100 100 . Level 1 . | . . . Level 2 . | . . . Level 3 . | . . . Level 4 . | . . . Level 5 . | . . . High Security . | . . . Max Security . | . . . Squads Dispatched 3 | . 3 . Investigation 1 | . 1 . Extermination . | . . . Reinforcement 2 | . 2 . Assault . | . . . Garrison . | . . . Intercept . | . . . Searches Triggered . | . . . Construction Impeded . | . . . Haulers Reinforced . | . . . Active Scanning Responses . | . . . Cargo Convoy Interrupts . | . . . Stealth | -11 -10 -10 --------- Run | Yrd Mat Sub Distress Signals 1 | . 1 . Communications Jammed . | . . . Distress Signals . | . . . Times Spotted 39 | 1 24 14 Peak Tracking Total 13 | 1 4 13 Tactical Retreats 1 | . 1 . Traps | -11 -10 -10 ------- Run | Yrd Mat Sub Traps Triggered 2 | . 2 . Indirectly . | . . . Trap Hack Attempts . | . . . Triggered . | . . . Disarmed . | . . . Reprogrammed . | . . . Reused . | . . . Traps Extracted . | . . . Installed . | . . . Triggered . | . . . Machines | -11 -10 -10 ---------- Run | Yrd Mat Sub Machines Disabled . | . . . Max in Single Turn . | . . . Machines Repaired . | . . . Machines Dismantled . | . . . Machines Sabotaged . | . . . Overloaded Fab Kills . | . . . Hacking | -11 -10 -10 --------- Run | Yrd Mat Sub Machines Accessed 3 | . 3 . Terminals 3 | . 3 . Fabricators . | . . . Repair Stations . | . . . Recycling Units . | . . . Scanalyzers . | . . . Garrison Access . | . . . Total Hacks 9 | . 9 . Successful 5 | . 5 . Failed 4 | . 4 . Catastrophic . | . . . Database Lockouts . | . . . Manual . | . . . Terminals 9 | . 9 . Fabricators . | . . . Repair Stations . | . . . Recycling Units . | . . . Scanalyzers . | . . . Garrison Access . | . . . Terminal Hacks 5 | . 5 . Prototype ID Bank 1 | . 1 . Emergency Access Points 1 | . 1 . Alert Level 1 | . 1 . Security Status 1 | . 1 . Zone Layout 1 | . 1 . Fabricator Hacks . | . . . Repair Station Hacks . | . . . Recycling Unit Hacks . | . . . Scanalyzer . | . . . Garrison Access Hacks . | . . . Unauthorized Hacks . | . . . Terminals . | . . . Fabricators . | . . . Repair Stations . | . . . Recycling Units . | . . . Scanalyzers . | . . . Garrison Access . | . . . Data Cores Recovered . | . . . Used . | . . . Hacking Detections 3 | . 3 . Full Trace Events . | . . . Feedback Events . | . . . Feedback Blocked . | . . . Robot Schematics Acquired . | . . . Robots Built . | . . . Authchips . | . . . Time . | . . . Total Robot Build Rating . | . . . Part Schematics Acquired . | . . . Parts Built . | . . . Authchips . | . . . Time . | . . . Total Part Build Rating . | . . . Parts Repaired . | . . . Time . | . . . Parts Recycled . | . . . Recycled Matter . | . . . Retrieved Matter . | . . . Retrieved Components . | . . . Parts Scanalyzed . | . . . Part Schematics Acquired . | . . . Parts Damaged . | . . . Bothacking | -11 -10 -10 ------------ Run | Yrd Mat Sub Used RIF Installer . | . . . Robots Hacked . | . . . Non-combat . | . . . Combat . | . . . Robot Hacks Applied . | . . . Relay Couplers Released . | . . . Fabnet Peak Effective % . | . . . Robots Rewired . | . . . Allies Hacked . | . . . Hacks Repelled . | . . . Allies | -11 -10 -10 -------- Run | Yrd Mat Sub Total Allies . | . . . Largest Group . | . . . Highest-Rated Group . | . . . Highest-Rated Ally . | . . . Total Orders . | . . . Ally Attacks . | . . . Total Damage . | . . . Kills . | . . . Allies Corrupted . | . . . Allies Melted . | . . . Intel | -11 -10 -10 ------- Run | Yrd Mat Sub Robot Analysis Total . | . . . Derelict Logs Recovered . | . . . Drone Launches . | . . . Drone Recoveries . | . . . Exploration | -11 -10 -10 ------------- Run | Yrd Mat Sub Turns Passed 8065 | 6049 1670 346 Spaces Moved 1758 | 1140 504 114 Core 18 | 18 . . Treads . | . . . Legs 1740 | 1122 504 114 Wheels . | . . . Hover . | . . . Flight . | . . . Fastest Speed 50 | 50 120 260 Average Speed 164 | 118 246 260 Slowest Speed 400 | 120 400 260 Overloaded Moves . | . . . Propulsion Burnouts . | . . . Robots Hopped . | . . . Cave-ins Triggered . | . . . Exploration Rate (%) 42 | 48 67 12 Regions Visited 2 Branch Regions 1 Pre-discovered Areas . | . . . Known Exits Taken . | . . . Unknown Exits Taken 2 | 1 1 . Scrap Searched . | . . . Spaces Dug 184 | 184 . . Terrain Destroyed 222 | 222 . . Melee . | . . . Projectile 222 | 222 . . AOE . | . . . Terrain Rammed . | . . . Walls Destroyed . | . . . Machines Disabled . | . . . Actions | -11 -10 -10 --------- Run | Yrd Mat Sub Total 5386 | 4384 842 160 Wait 3185 | 2916 239 30 Move 1756 | 1139 503 114 Hop . | . . . Pick Up 31 | 12 16 3 Fast Attach . | . . . Attach 25 | 12 12 1 Detach 6 | 3 3 . Swap 13 | 3 7 3 Drop 13 | 3 4 6 Fire 355 | 296 56 3 Melee . | . . . Ram . | . . . Kick 2 | . 2 . Crush . | . . . Escape Stasis . | . . . Rewire . | . . . Trap . | . . . Miscellaneous . | . . . Route ------- -11/Scrapyard -10/Materials (discovered 3 exits: [*Min x2] / [*Sub]) -10/Subcaves History --------- Turn | Location | Event 2 | -11/Scrapyard | Met Revision 17 60 | -11/Scrapyard | Discovered new exit (range 8) 6050 | -11/Scrapyard | Entered Materials 6068 | -10/Materials | Build established: Mutant 6764 | -10/Materials | Core integrity fell below 50% 6783 | -10/Materials | Lost 6 parts (1p2n1u2w) 6829 | -10/Materials | Discovered new exit (range 17) 7094 | -10/Materials | Build established: Scavenger-Mutant 7454 | -10/Materials | Discovered new exit (range 5) 7694 | -10/Materials | Discovered new exit (range 6) 7720 | -10/Materials | Entered Subcaves 8052 | -10/Subcaves | Ambushed by swarm of Subdwellers 8052 | -10/Subcaves | Ambushed by Subdwellers from Twisted Machinery 8052 | -10/Subcaves | Ambushed by Subdwellers from Twisted Machinery 8052 | -10/Subcaves | Ambushed by Subdwellers from Twisted Machinery 8052 | -10/Subcaves | Ambushed by Subdwellers from Twisted Machinery 8052 | -10/Subcaves | Ambushed by Subdwellers from Twisted Machinery 8052 | -10/Subcaves | Ambushed by Subdwellers from Twisted Machinery 8065 | -10/Subcaves | Core integrity fell below 20% 8066 | -10/Subcaves | Destroyed by L5-IYT(R) with Subdweller Machine Gun Last Messages --------------- 08052_ 42-M3N(R) angrily emerges from the Twisted Machinery. 08052_ SA-YKB(R) angrily emerges from the Twisted Machinery. 08053_ TB-G71(g) destroyed. 08054_ 9R-UMP(h) destroyed. 08055_ 90-9SB(R) suffers critical hit (Destroy). 08055_ Critical hit (Meltdown: +270). 08055_ I6-XQW(g) destroyed. 08056_ P&PHARR/#GGSQ,JIO&< W&C 08059_ Critical hit (Destroy). 08059_ Sub. Laser destroyed. 08061_ 90-9SB(R) destroyed. 08061_ 42-M3N(R) destroyed. 08062_ Aluminum Leg destroyed. 08063_ Dropped Lgt. Ion Engine. 08064_ Dropped Heat Sink. 08064_ Aluminum Leg destroyed. 08065_ Dropped Imp. Heat Sink. 08065_ Lgt. Cannon destroyed. 08065_ Dropped Hcp. Matter Pod. 08066_ Dropped Structural Scanner. Map ----- +----------------------------------------------------+ | ???????????????????????????????????### ## ## | | ????????????????????????????????????##### # | | ???????????????????????????????????????##### | | ??????????????????????????????????????????### | | ??????????????????????????????????????????####### | | ???????????????????????????????????????????####### | | ?????????????????????????????????????????????????# | | ?????????????????????????????????????????????????? | | ?????????????????????????????????????????????????? | | ?????????????????????????????????????????????????? | | ?????????????????????????????????????????????????? | | ?????????????????????????????????????????????????? | | ?????????????????????????????????????????????????# | | ?????????????????????????????????????????????????# | | ?????????????????????????????????????????????????# | | ???????????????????????????????????????????#"????# | | ???????????????????????????????????????????#&#???# | | ???????????????????????????????????????????? #??? | | ????????????????????????????????????????????# "### | | ???????????????????????????????????????????## ## # | | ??????????????????????????????????????????##" " # | | ????????????????????###?????????????###???# =& | | ??????????????????? """#????###?## " ;;"?## %%[ | | ????????????????????? " ###?# ## ## # &! | | ???????????????????????""!##; R %= | | ????????????????????????#@!!= RR *% | | ????????????????????????##*% *RR R = ## | | ?????????????????????????#!= =R;;;RR ### | | ?????????????????????????#" ;## ## | | ?????????????????????????#" ## | | ????????????????????"" ### # # | | ????????????????????""? ??## R # # ## | | ??????????????????????""" ???## ###### ##? | | ????????????????????# ""?"????### ##????# ####?? | | ????????????????????##"?"#??????####?????####????? | | ?????????????????????????????????????????????????? | | ?????????????????????????????????????????????????? | | ?????????????????????????????????????????????????? | | ?????????????????????????????????????????????????? | | ?????????????????????????????????????????????????? | | ?????????????????????????????????????????????????? | | ?????????????????????????????????????????????????? | | ?????????????????????????????????????????????????? | | ?????????????????????????????????????????????????? | | ?????????????????????????????????????????????????? | | ?????????????????????????????????????????????????? | | ?????????????????????????????????????????????????? | | ?????????????????????????????????????????????????? | | ?????????????????????????????????????????????????? | | ?????????????????????????????????????????????????? | +----------------------------------------------------+ Best States ------------- Heat Dissipation 35 Energy Generation 10 Energy Capacity 250 Matter Stores 300 Matter Capacity 300 Sight Range 21 Robot Scan Range 14 Terrain Scan Density 10 Evasion (%) 55 Item Schematics ----------------- None Robot Schematics ------------------ None Fabricated ------------ Nothing Alien Tech Used ----------------- None Achievements -------------- None Challenges ------------ None Game ------ Seed HelicalFlakField Manual? 0 Play Time 00:48:53 Cumulative 3.6 hours Start 2024.04.07 @ 18:34:10 End 2024.04.07 @ 19:24:25 Sessions 1 Manual Loads 0 Difficulty Rogue Special Mode None Game No. 2 Rogue 2 Adventurer 0 Explorer 0 Win Type - Total 0 Types 0/0/0/0/0/0/0/0/0 Lore% 1 Gallery% 4 Achievement% 4 Wizard Run 0 Options --------- Layout 1 ASCII 0 Keyboard 0 Movement Mouse Keybinds 0 Fullscreen 2 Font 20/SmallcapsGlow Map View 32x21 Zoom Use 68% Tactical HUD 1 Map Filters NONE Filters NONE Steam 1 RUN: 0ae35731-01ab-44c5-a3c7-6cc2ad957abc